bitfinex/quotes_SOLUSD_20250724
["timestamp","ask_amount","ask_price","bid_price","bid_amount"]
[1753356459178,5.39037764,186.13,186.12,55.62900711]
[1753356459386,4.68037764,186.14,186.13,16.78468397]
[1753356459687,4.68037764,186.14,186.13,55.34468397]
[1753356459862,5.39037764,186.14,186.13,55.34468397]
[1753356460063,4.68037764,186.14,186.13,55.34468397]
[1753356460679,0.74,186.16,186.13,55.34468397]
[1753356460883,0.03,186.16,186.14,0.28432314]
[1753356461186,0.03,186.16,186.15,56.16620829]
[1753356462266,0.03,186.16,186.15,150.50658593]
[1753356462475,0.03,186.16,186.15,149.96938475]
[1753356462877,0.03,186.16,186.15,111.44101892]
[1753356463079,0.03,186.16,186.15,150.00101892]
[1753356463390,0.03,186.16,186.15,150.66101892]
[1753356464289,0.03,186.16,186.15,150.00101892]
[1753356465198,5.42037764,186.16,186.15,38.56]
[1753356465369,5.42037764,186.16,186.15,55.34468397]
[1753356465681,0.74,186.16,186.15,55.34468397]
[1753356465865,0.03,186.16,186.15,55.34468397]
[1753356466062,0.03,186.16,186.15,55.62900711]
[1753356467776,4.71037764,186.16,186.15,16.78468397]
[1753356468091,5.42037764,186.16,186.15,55.34468397]
[1753356468682,4.71037764,186.16,186.15,55.34468397]
[1753356469400,0.03,186.16,186.15,55.34468397]
[1753356470485,5.42037764,186.16,186.15,55.34468397]
[1753356471972,10.79210088,186.16,186.15,38.54]
[1753356472275,5.42037764,186.16,186.15,38.54]
[1753356472681,10.79210088,186.16,186.15,38.54]
[1753356474898,24.221409,186.16,186.14,38.54]
[1753356475070,5.39037764,186.15,186.14,38.54]
[1753356475477,5.39037764,186.15,186.12,38.54]
[1753356475808,0.71,186.14,186.13,0.06]
[1753356476277,6.08230041,186.14,186.13,0.06]
[1753356476782,10.76267805,186.14,186.13,0.06]
[1753356477884,10.05267805,186.14,186.13,0.06]
[1753356478086,4.68037764,186.15,186.13,16.84468397]
[1753356478390,10.05267805,186.14,186.13,38.6]
[1753356478705,10.76267805,186.14,186.13,38.6]
[1753356481700,0.03,186.16,186.13,38.6]
[1753356481914,5.40177433,186.16,186.13,39.26]
[1753356482107,4.68037764,186.15,186.13,39.26]
[1753356482686,4.68037764,186.15,186.14,16.78468397]
[1753356482901,4.68037764,186.15,186.14,17.44468397]
[1753356483128,4.71037764,186.16,186.14,17.44468397]
[1753356483301,0.03,186.16,186.15,55.98468397]
[1753356483491,4.71037764,186.16,186.15,55.32468397]
[1753356485612,10.79210088,186.16,186.13,0.06]
[1753356485911,0.71,186.15,186.14,38.54]
[1753356486894,6.08201181,186.15,186.14,38.54]
[1753356487094,10.76238945,186.15,186.14,38.54]
[1753356487394,0.03,186.16,186.14,55.32468397]
[1753356487594,4.68037764,186.15,186.14,55.32468397]
[1753356488006,4.71037764,186.16,186.14,55.98468397]
[1753356488405,0.03,186.16,186.15,18.26620829]
[1753356488715,0.03,186.16,186.15,22.94658593]
[1753356489023,0.03,186.16,186.15,23.6382201]
[1753356490619,0.03,186.16,186.15,28.31859774]
[1753356493203,0.03,186.16,186.15,23.6382201]
[1753356493402,0.03,186.16,186.15,28.31859774]
[1753356495226,0.03,186.16,186.15,117.31859774]
[1753356495406,0.03,186.16,186.15,116.78139656]
[1753356495610,0.03,186.19,186.18,17.06900711]
[1753356495800,0.03,186.19,186.18,149.80649937]
[1753356496124,0.03,186.19,186.18,149.96938475]
[1753356497434,0.03,186.19,186.18,155.34053095]
[1753356501613,0.03,186.19,186.18,111.15583017]
[1753356501809,0.03,186.19,186.18,149.65583017]
[1753356502014,0.03,186.19,186.18,155.32053095]
[1753356502223,0.03,186.19,186.18,155.17836938]
[1753356503732,0.03,186.19,186.18,155.32053095]
[1753356504648,0.03,186.19,186.18,154.62053095]
[1753356505140,0.03,186.19,186.18,116.12053095]
[1753356505439,0.03,186.19,186.16,26.0]
[1753356505440,5.42037764,186.19,186.14,16.78468397]
[1753356505746,4.68037764,186.17,186.16,16.78468397]
[1753356505948,0.71,186.17,186.16,16.78468397]
[1753356506119,0.03,186.19,186.17,0.14216157]
[1753356506441,0.03,186.19,186.18,55.54900711]
[1753356506641,0.74,186.19,186.18,55.54900711]
[1753356507349,5.42037764,186.19,186.14,94.37224447]
[1753356507517,4.68037764,186.17,186.15,16.78468397]
[1753356507715,10.76222036,186.16,186.13,16.84468397]
[1753356508014,4.68037764,186.14,186.13,17.12900711]
[1753356508214,0.71,186.15,186.13,17.12900711]
[1753356508215,5.39037764,186.15,186.13,55.60900711]
[1753356508449,5.39037764,186.15,186.13,55.32468397]
[1753356508939,4.68037764,186.14,186.13,55.60900711]
[1753356509138,5.39037764,186.14,186.13,55.46684554]
[1753356509545,5.39037764,186.14,186.13,0.06]
[1753356509747,5.39037764,186.14,186.13,38.54]
[1753356509916,4.68037764,186.17,186.14,16.78468397]
[1753356510119,5.39037764,186.18,186.16,16.78468397]
[1753356510340,5.39037764,186.18,186.17,38.48]
[1753356510646,5.39037764,186.18,186.16,38.48]
[1753356510850,4.68037764,186.17,186.16,38.48]
[1753356511554,4.68037764,186.17,186.16,55.26468397]
[1753356512243,0.03,186.19,186.16,55.26468397]
[1753356512445,4.68037764,186.17,186.16,55.26468397]
[1753356512636,5.39037764,186.17,186.13,0.06]
[1753356512841,4.68037764,186.15,186.14,38.48]
[1753356513152,5.39037764,186.15,186.14,38.48]
[1753356513934,5.39037764,186.15,186.13,0.06]
[1753356514142,5.39037764,186.14,186.13,0.06]
[1753356514458,10.76267805,186.14,186.13,0.06]
[1753356516863,5.39037764,186.14,186.13,0.06]
[1753356517327,10.76267805,186.14,186.13,0.06]
[1753356518149,5.39037764,186.14,186.13,0.06]
[1753356518353,4.68037764,186.14,186.13,0.06]
[1753356518550,4.68037764,186.14,186.13,38.54]
[1753356520346,0.7,186.16,186.13,38.54]
[1753356520540,4.68037764,186.15,186.13,38.54]
[1753356522186,4.68037764,186.16,186.13,38.54]
[1753356522752,4.68037764,186.15,186.13,38.54]
[1753356523564,10.75212737,186.16,186.13,38.54]
[1753356524967,4.68037764,186.15,186.13,38.54]
[1753356525556,5.38037764,186.14,186.13,0.06]
[1753356527359,10.75267805,186.14,186.13,0.06]
[1753356527895,15.43305569,186.14,186.13,0.06]
[1753356528061,10.75267805,186.14,186.13,0.06]
[1753356528461,41.43305569,186.14,186.13,1e-08]
[1753356528677,26.0,186.12,186.09,0.06]
[1753356528880,4.68037764,186.1,186.09,1e-08]
[1753356529383,36.66383277,186.1,186.09,1e-08]
[1753356530690,10.66383277,186.1,186.09,1e-08]
[1753356532985,5.98345513,186.1,186.09,1e-08]
[1753356533184,10.66383277,186.1,186.09,1e-08]
[1753356533784,10.05383277,186.1,186.09,1e-08]
[1753356534481,4.68037764,186.1,186.09,1e-08]
[1753356534782,10.05383277,186.1,186.09,1e-08]
[1753356534986,10.75383277,186.1,186.09,1e-08]
[1753356537270,10.75383277,186.1,186.06,0.06]
[1753356537271,26.0,186.07,186.06,0.06]
[1753356537473,30.68037764,186.07,186.06,0.06]
[1753356537688,31.38037764,186.07,186.06,0.06]
[1753356538872,36.75469913,186.07,186.06,0.06]
[1753356539569,54.87088049,186.07,186.02,0.06]
[1753356539775,9.36075528,186.03,186.02,0.06]
[1753356540282,10.06075528,186.03,186.02,0.06]
[1753356540668,4.68037764,186.04,186.02,0.74]
[1753356540874,10.05556577,186.04,186.03,0.68]
[1753356541085,10.05556577,186.04,186.02,0.06]
[1753356541389,4.68037764,186.03,186.02,0.06]
[1753356541580,0.7,186.08,186.02,0.74]
[1753356541891,4.68037764,186.06,186.02,0.74]
[1753356542393,4.68037764,186.04,186.02,0.06]
[1753356542593,4.68037764,186.05,186.02,0.74]
[1753356542769,4.68037764,186.04,186.02,0.74]
[1753356542969,4.68037764,186.04,186.02,0.06]
[1753356543185,10.05563302,186.04,186.02,0.06]
[1753356543592,4.68037764,186.03,186.02,0.06]
[1753356544723,5.3749682,186.05,186.02,0.06]
[1753356544891,4.68037764,186.04,186.02,0.74]
[1753356545268,4.68037764,186.07,186.04,16.78468397]
[1753356545492,4.68037764,186.07,186.05,0.68]
[1753356545674,4.68037764,186.06,186.03,8.005]
[1753356545876,4.68037764,186.04,186.03,8.005]
[1753356546079,4.68037764,186.05,186.03,8.005]
[1753356546393,4.68037764,186.06,186.03,8.685]
[1753356546692,5.37374388,186.09,186.04,17.46468397]
[1753356546883,4.68037764,186.07,186.05,0.68]
[1753356548393,4.68037764,186.07,186.04,55.24468397]
[1753356548600,4.68037764,186.06,186.04,55.24468397]
[1753356548894,4.68037764,186.06,186.04,55.91468397]
[1753356549496,4.68037764,186.07,186.04,60.61982602]
[1753356549793,4.68037764,186.07,186.05,0.67]
[1753356550772,5.37037764,186.06,186.02,0.06]
[1753356551085,4.68037764,186.03,186.02,0.06]
[1753356553178,4.68037764,186.04,186.02,0.06]
[1753356553378,4.68037764,186.04,186.02,0.73]
[1753356553573,5.37492418,186.05,186.02,0.06]
[1753356553574,4.68037764,186.03,186.02,0.06]
[1753356554298,10.05585471,186.03,186.02,0.06]
[1753356554771,15.42623235,186.03,186.02,0.06]
[1753356554974,15.42623235,186.03,185.99,0.06]
[1753356554975,26.0,186.0,185.99,0.06]
[1753356555169,30.68037764,186.0,185.99,0.06]
[1753356555375,31.37037764,186.0,185.99,0.06]
[1753356555596,4.68037764,186.0,185.99,0.06]
[1753356556093,5.3758493,186.02,185.99,0.06]
[1753356556297,4.68037764,186.0,185.99,0.06]
[1753356557799,4.68037764,186.02,185.99,0.73]
[1753356557978,4.68037764,186.02,186.0,0.67]
[1753356558705,4.68037764,186.01,186.0,0.67]
[1753356559007,0.69,186.03,185.99,0.06]
[1753356559180,4.68037764,186.01,185.99,0.73]
[1753356559990,4.68037764,186.0,185.99,0.06]
[1753356561608,4.68037764,186.01,185.99,0.06]
[1753356562082,4.68037764,186.01,185.99,0.73]
[1753356562408,4.68037764,186.01,185.99,0.06]
[1753356562982,0.03,186.02,186.0,0.95432314]
[1753356563284,0.03,186.02,186.01,60.57506161]
[1753356563811,0.03,186.02,186.01,60.85938475]
[1753356564199,0.03,186.02,186.01,17.06900711]
[1753356564401,0.03,186.02,186.01,55.50900711]
[1753356564602,0.03,186.02,185.99,31.41037764]
[1753356564603,6.09576604,186.02,185.99,38.5]
[1753356564922,0.69,186.01,185.99,55.28468397]
[1753356565101,4.68037764,186.0,185.99,55.28468397]
[1753356565291,4.68037764,186.0,185.99,38.5]
[1753356566283,4.68037764,186.01,185.99,55.28468397]
[1753356566489,4.71037764,186.02,186.0,17.45468397]
[1753356567096,4.71037764,186.02,186.0,16.78468397]
[1753356567500,0.03,186.02,186.01,17.45468397]
[1753356567811,0.03,186.02,186.01,22.41938475]
[1753356568489,0.03,186.02,186.01,17.73900711]
[1753356568800,0.03,186.02,185.99,132.8766317]
[1753356569001,0.03,186.02,186.0,16.78468397]
[1753356570301,0.03,186.02,186.01,8.58927109]
[1753356571213,0.03,186.02,186.01,0.95432314]
[1753356571701,0.03,186.02,186.01,6.33037819]
[1753356572215,0.03,186.02,186.01,61.55506216]
[1753356574006,0.03,186.02,186.01,158.72761561]
[1753356574310,0.03,186.02,186.01,165.92891011]
[1753356575797,0.03,186.06,186.01,165.92891011]
[1753356575798,0.03,186.06,186.02,16.78468397]
[1753356575992,0.03,186.06,186.05,17.06900711]
[1753356576188,0.03,186.06,186.05,55.50900711]
[1753356576794,0.03,186.06,186.05,63.81395506]
[1753356577419,0.03,186.06,186.05,69.18885428]
[1753356581123,0.03,186.06,186.05,158.18885428]
[1753356582822,0.03,186.06,186.05,157.51885428]
[1753356584036,0.03,186.06,186.05,55.22468397]
[1753356586134,0.03,186.06,186.05,60.59958319]
[1753356587528,0.03,186.06,186.05,69.21885428]
[1753356587830,0.03,186.06,186.05,61.58390633]
[1753356588021,0.03,186.06,186.05,69.21885428]
[1753356589028,0.68,186.06,186.04,17.06900711]
[1753356589336,0.68,186.06,186.05,55.20468397]
[1753356590228,5.36294192,186.06,186.05,38.42]
[1753356590726,0.03,186.06,186.05,38.42]
[1753356594028,0.03,186.06,186.05,55.48900711]
[1753356595129,0.03,186.06,186.05,60.86390633]
[1753356595330,0.03,186.06,186.05,61.56390633]
[1753356597510,0.03,186.06,186.05,55.48900711]
[1753356597735,0.03,186.06,186.05,60.86390633]
[1753356598722,0.03,186.06,186.05,61.56390633]
[1753356599813,0.03,186.06,186.05,56.18900711]
[1753356600036,0.03,186.06,186.05,61.56390633]
[1753356600815,5.36294192,186.06,186.01,0.06]
[1753356601031,4.68294192,186.02,186.01,0.06]
[1753356601229,0.65,186.05,186.01,0.06]
[1753356601432,4.68294192,186.04,186.01,0.06]
[1753356601636,4.68294192,186.02,186.01,0.06]
[1753356601839,4.68294192,186.02,185.99,0.06]
[1753356601840,5.33294192,186.02,185.99,0.06]
[1753356602140,4.68294192,186.0,185.99,0.06]
[1753356602346,0.65,186.02,185.99,0.06]
[1753356602519,4.68294192,186.02,185.99,0.06]
[1753356603029,5.37493339,186.05,186.0,38.42]
[1753356603230,4.68294192,186.03,186.0,38.42]
[1753356603436,4.68294192,186.03,186.0,39.12]
[1753356604342,0.65,186.04,186.0,39.12]
[1753356604343,5.33294192,186.04,186.0,39.12]
[1753356604546,4.68294192,186.03,186.0,38.42]
[1753356604850,4.68294192,186.02,186.0,38.42]
[1753356605625,0.65,186.03,185.99,0.06]
[1753356605626,5.33294192,186.01,185.99,0.06]
[1753356605824,4.68294192,186.0,185.99,0.06]
[1753356606038,5.33294192,186.0,185.99,0.06]
[1753356606632,10.709286,186.0,185.99,0.06]
[1753356606832,5.37612807,186.01,185.99,0.06]
[1753356607032,4.68294192,186.0,185.99,0.06]
[1753356607556,4.68294192,186.02,185.99,0.06]
[1753356608237,4.68294192,186.01,185.99,38.48]
[1753356608441,4.68294192,186.0,185.99,38.48]
[1753356608654,5.33294192,186.01,185.99,38.48]
[1753356609031,5.33294192,186.01,185.99,0.06]
[1753356610246,10.70906165,186.01,185.99,0.06]
[1753356610853,4.68294192,186.01,185.99,0.06]
[1753356612122,4.68294192,186.0,185.99,0.06]
[1753356613141,5.37609113,186.01,185.99,0.06]
[1753356613350,5.33294192,186.0,185.99,0.06]
[1753356614650,10.709286,186.0,185.99,0.06]
[1753356619952,4.68294192,186.0,185.99,0.06]
[1753356620152,4.68294192,186.01,185.99,0.06]
[1753356620354,0.03,186.05,186.0,16.78468397]
[1753356620531,4.68294192,186.02,186.0,16.78468397]
[1753356620732,4.68294192,186.02,186.0,0.66]
[1753356621159,4.71294192,186.05,186.02,16.78468397]
[1753356621542,4.68294192,186.04,186.02,17.44468397]
[1753356621862,4.68294192,186.04,186.0,8.30972314]
[1753356621863,4.68294192,186.04,186.0,25.75440711]
[1753356622039,4.68294192,186.04,186.02,16.78468397]
[1753356622240,5.33294192,186.03,186.0,46.4454]
[1753356622446,4.68294192,186.02,186.0,38.42]
[1753356622653,0.65,186.03,185.99,16.84468397]
[1753356622954,4.68294192,186.01,185.99,16.84468397]
[1753356623462,4.68294192,186.01,185.99,0.06]
[1753356623648,4.68294192,186.02,185.99,0.06]
[1753356623836,4.68294192,186.02,186.0,0.66]
[1753356624158,5.33294192,186.02,185.99,0.06]
[1753356624360,4.68294192,186.01,185.99,0.06]
[1753356624652,5.33294192,186.02,185.99,0.06]
[1753356624833,4.68294192,186.0,185.99,0.06]
[1753356627067,10.059286,186.0,185.99,0.06]
[1753356627251,10.709286,186.0,185.99,0.06]
[1753356627753,5.37547707,186.03,185.99,0.06]
[1753356627937,0.03,186.01,185.99,0.72]
[1753356629141,4.71294192,186.01,185.99,0.06]
[1753356630163,10.08901667,186.01,185.99,0.06]
[1753356630358,4.71294192,186.01,185.99,0.06]
[1753356630876,0.03,186.01,186.0,17.72900711]
[1753356631159,0.03,186.01,186.0,22.41194903]
[1753356631858,0.03,186.01,186.0,60.83194903]
[1753356632063,0.03,186.01,186.0,55.48900711]
[1753356632664,0.03,186.01,186.0,56.14900711]
[1753356633165,0.03,186.01,185.99,95.1046]
[1753356633457,0.03,186.01,186.0,38.42]
[1753356633665,0.03,186.01,185.99,95.1046]
[1753356634969,5.33294192,186.0,185.99,0.06]
[1753356635437,5.33294192,186.0,185.95,0.06]
[1753356635636,4.68294192,185.96,185.95,0.06]
[1753356635838,5.33294192,185.96,185.95,0.06]
[1753356636465,10.06044245,185.96,185.95,0.06]
[1753356636760,10.71044245,185.96,185.95,0.06]
[1753356637066,15.39338437,185.96,185.95,0.06]
[1753356639083,9.36588384,185.95,185.94,0.06]
[1753356639366,35.36588384,185.94,185.92,0.2]
[1753356639666,74.44588384,185.94,185.92,0.2]
[1753356639864,38.42,185.94,185.92,0.2]
[1753356640047,4.68294192,185.94,185.92,0.2]
[1753356640449,4.68294192,185.94,185.93,0.78]
[1753356640866,4.68294192,185.94,185.93,0.06]
[1753356641444,10.72102087,185.94,185.93,0.06]
[1753356641661,15.40396279,185.94,185.93,0.06]
[1753356642153,10.72102087,185.94,185.93,0.06]
[1753356644465,15.40396279,185.94,185.93,0.06]
[1753356644670,41.40396279,185.94,185.92,0.2]
[1753356644865,5.34294192,185.93,185.92,0.2]
[1753356645079,10.72131012,185.93,185.92,0.2]
[1753356645446,10.72131012,185.93,185.91,0.06]
[1753356645780,43.76294192,185.92,185.91,0.06]
[1753356647246,49.1415994,185.92,185.91,0.06]
[1753356649868,53.14428397,185.89,185.87,0.06]
[1753356650071,53.14428397,185.89,185.75,1.6209]
[1753356650072,4.68294192,185.79,185.75,1.6209]
[1753356650669,5.34294192,185.85,185.75,1.6209]
[1753356650670,38.42,185.85,185.76,0.72]
[1753356650853,4.68294192,185.82,185.78,17.06900711]
[1753356651177,4.68294192,185.82,185.79,0.72]
[1753356651384,4.68294192,185.82,185.8,0.72]
[1753356651558,4.68294192,185.81,185.77,16.78468397]
[1753356651765,4.68294192,185.79,185.77,17.50468397]
[1753356651967,5.38157057,185.82,185.77,0.72]
[1753356651968,4.68294192,185.78,185.77,0.72]
[1753356652484,4.68294192,185.78,185.76,16.78468397]
[1753356652775,4.68294192,185.78,185.76,17.50468397]
[1753356653154,5.38157057,185.82,185.77,0.72]
[1753356653379,4.68294192,185.81,185.78,0.72]
[1753356653549,21.64453578,185.81,185.79,0.72]
[1753356653752,21.64453578,185.81,185.77,0.28432314]
[1753356653956,16.96159386,185.81,185.8,0.72]
[1753356654978,16.96159386,185.81,185.8,28.48664903]
[1753356655176,16.96159386,185.81,185.8,27.76664903]
[1753356655377,16.96159386,185.81,185.8,23.80370711]
[1753356655589,16.96159386,185.81,185.8,28.48664903]
[1753356656063,16.96159386,185.81,185.8,33.86878035]
[1753356657178,16.96159386,185.81,185.8,36.83553417]
[1753356657385,8.62839386,185.81,185.8,38.39943417]
[1753356658060,8.62839386,185.81,185.8,76.83943417]
[1753356658254,8.62839386,185.81,185.8,38.39943417]
[1753356658474,8.62839386,185.81,185.8,76.83943417]
[1753356658781,8.62839386,185.81,185.8,38.39943417]
[1753356658970,8.62839386,185.81,185.8,76.83943417]
[1753356659169,7.64969574,185.91,185.84,42.78468397]
[1753356659355,5.37833798,185.94,185.88,16.78468397]
[1753356659555,5.37833798,185.94,185.89,1.00432314]
[1753356659556,7.64969574,185.93,185.89,1.00432314]
[1753356659770,7.64969574,185.93,185.9,0.72]
[1753356659968,7.64969574,185.92,185.9,0.72]
[1753356660156,7.64969574,185.91,185.87,0.72]
[1753356660352,7.64969574,185.92,185.89,0.28432314]
[1753356660556,7.64969574,185.92,185.89,1.00432314]
[1753356660786,7.64969574,185.92,185.85,8.36969574]
[1753356660787,7.64969574,185.9,185.85,8.36969574]
[1753356660966,7.64969574,185.89,185.87,0.28432314]
[1753356661167,7.64969574,185.9,185.87,1.00432314]
[1753356661773,13.44555355,185.94,185.88,0.72]
[1753356661774,7.64969574,185.91,185.88,0.72]
[1753356662083,5.37807895,185.94,185.88,0.72]
[1753356662383,7.64969574,185.92,185.88,0.72]
[1753356662583,7.64969574,185.91,185.89,0.72]
[1753356663493,7.64969574,185.96,185.91,0.28432314]
[1753356663661,7.64969574,185.96,185.92,16.78468397]
[1753356663864,5.37759725,185.96,185.92,17.50468397]
[1753356664180,7.64969574,185.95,185.92,17.50468397]
[1753356664375,7.64969574,185.95,185.91,0.28432314]
[1753356664376,5.37692224,185.98,185.93,0.72]
[1753356664574,7.64969574,185.96,185.94,0.72]
[1753356664803,7.64969574,185.95,185.92,1.00432314]
[1753356664972,7.64969574,185.95,185.93,0.72]
[1753356665986,7.64969574,185.96,185.93,0.72]
[1753356667257,5.37700357,185.98,185.93,0.72]
[1753356667490,7.64969574,185.96,185.94,0.72]
[1753356667679,7.64969574,185.97,185.94,0.72]
[1753356668171,7.64969574,185.96,185.94,0.72]
[1753356668591,7.64969574,185.96,185.92,1.00432314]
[1753356668775,7.64969574,185.96,185.93,0.68]
[1753356669086,7.64969574,185.96,185.93,39.1]
[1753356669382,13.02722995,185.96,185.93,39.1]
[1753356669686,7.64969574,185.94,185.92,38.42]
[1753356669858,7.64969574,185.94,185.92,39.1]
[1753356670664,7.64969574,185.96,185.93,17.74900711]
[1753356670864,7.64969574,185.96,185.94,0.68]
[1753356671060,0.03,185.96,185.93,17.06900711]
[1753356671271,0.03,185.96,185.95,17.74900711]
[1753356673976,7.67969574,185.96,185.95,17.06900711]
[1753356674186,7.67969574,185.96,185.95,55.48900711]
[1753356674484,7.67969574,185.96,185.95,17.06900711]
[1753356674669,0.03,185.96,185.95,17.06900711]
[1753356677172,4.71847905,185.96,185.95,17.06900711]
[1753356677371,0.03,185.96,185.95,17.06900711]
[1753356679094,6.29216894,186.0,185.97,0.28432314]
[1753356679297,4.68847905,186.04,185.99,21.75748616]
[1753356679476,10.06400914,186.03,185.99,17.06900711]
[1753356679814,10.06400914,186.03,186.0,0.68]
[1753356680305,4.71847905,186.05,186.0,22.43748616]
[1753356680597,10.06386837,186.04,186.0,22.43748616]
[1753356680973,10.06386837,186.04,186.0,17.74900711]
[1753356681900,4.68847905,186.04,186.0,17.74900711]
[1753356682188,0.03,186.05,186.0,54.35146464]
[1753356682594,0.03,186.05,186.0,28.35146464]
[1753356682977,0.03,186.05,186.0,23.66298559]
[1753356683175,0.03,186.05,186.0,28.35146464]
[1753356683580,4.71847905,186.05,186.0,60.83748616]
[1753356683791,4.68847905,186.03,186.0,55.46900711]
[1753356684180,4.68847905,186.03,186.0,55.32684554]
[1753356684392,5.41847905,186.01,185.97,16.78468397]
[1753356684570,0.7,186.0,185.98,38.4]
[1753356684771,0.7,185.99,185.98,0.28432314]
[1753356684993,6.07663315,185.99,185.98,0.28432314]
[1753356685371,5.37663315,185.99,185.97,38.4]
[1753356685573,5.37663315,185.99,185.97,16.78468397]
[1753356685797,5.37663315,185.99,185.97,55.18468397]
[1753356686187,4.68847905,185.98,185.97,55.46900711]
[1753356687328,7.63989544,185.98,185.97,55.46900711]
[1753356688576,0.03,186.01,185.98,0.28432314]
[1753356688898,0.03,186.01,185.93,89.0]
[1753356688899,13.04595049,186.01,186.0,17.06900711]
[1753356689092,7.66989544,186.01,186.0,17.06900711]
[1753356689699,5.40605505,186.01,186.0,17.06900711]
[1753356689904,13.04595049,186.01,186.0,17.06900711]
[1753356690702,13.04595049,186.01,186.0,55.46900711]
[1753356690902,13.04595049,186.01,185.95,16.78468397]
[1753356690903,13.74595049,186.01,185.95,16.78468397]
[1753356691082,7.63989544,185.98,185.97,16.78468397]
[1753356691286,7.63989544,185.99,185.98,0.14216157]
[1753356691495,7.63989544,185.99,185.98,38.68432314]
[1753356692406,13.01652859,185.99,185.98,38.68432314]
[1753356693183,13.01652859,185.99,185.98,0.28432314]
[1753356693383,13.71652859,185.99,185.97,38.4]
[1753356693582,8.33989544,185.98,185.95,0.14216157]
[1753356693797,7.63989544,185.96,185.95,55.46900711]
[1753356693994,7.63989544,185.96,185.95,17.06900711]
[1753356694212,7.63989544,185.96,185.95,55.46900711]
[1753356696306,13.01739597,185.96,185.95,55.46900711]
[1753356697513,7.63989544,185.96,185.95,55.46900711]
[1753356698685,5.37750053,185.96,185.95,0.14216157]
[1753356698882,5.37730477,185.97,185.95,38.54216157]
[1753356699078,5.37730477,185.97,185.95,39.40432314]
[1753356699079,7.63989544,185.96,185.95,39.40432314]
[1753356700205,0.03,186.01,185.96,17.06900711]
[1753356700411,0.03,186.01,185.99,7.92421858]
[1753356700588,0.03,186.01,186.0,38.4]
[1753356700788,7.66989544,186.01,186.0,38.4]
[1753356701123,13.76595049,186.01,186.0,38.4]
[1753356701701,13.76595049,186.01,185.95,17.78900711]
[1753356701909,7.63989544,185.99,185.97,17.06900711]
[1753356702212,7.63989544,185.99,185.98,38.68432314]
[1753356702615,7.63989544,186.0,185.98,38.68432314]
[1753356702824,13.04595049,186.01,185.99,17.78900711]
[1753356703003,13.04595049,186.01,186.0,38.68432314]
[1753356704494,7.66989544,186.01,186.0,38.68432314]
[1753356705322,7.66989544,186.01,186.0,55.46900711]
[1753356705630,0.03,186.01,186.0,56.18900711]
[1753356705829,0.03,186.01,186.0,69.20524663]
[1753356707096,0.03,186.01,186.0,30.80524663]
[1753356707335,0.03,186.01,186.0,66.22919587]
[1753356708918,0.03,186.01,186.0,61.54535119]
[1753356709107,0.03,186.01,186.0,66.22919587]
[1753356709718,0.03,186.01,186.0,27.84919587]
[1753356709897,0.03,186.01,186.0,55.44900711]
[1753356710207,0.03,186.01,186.0,60.82535119]
[1753356710414,0.03,186.01,186.0,66.22919587]
[1753356710796,0.03,186.01,186.0,60.85285179]
[1753356711306,0.03,186.01,186.0,149.85285179]
[1753356712010,0.03,186.01,186.0,155.22919587]
[1753356712514,0.03,186.01,186.0,106.78900711]
[1753356712711,0.03,186.01,186.0,145.16900711]
[1753356714820,0.03,186.01,186.0,106.06900711]
[1753356715022,5.43384468,186.01,186.0,38.38]
[1753356715218,4.71384468,186.01,186.0,38.38]
[1753356715599,5.40384468,186.01,185.97,17.50468397]
[1753356715900,4.68384468,186.0,185.99,16.78468397]
[1753356716099,10.06018876,186.0,185.99,55.44900711]
[1753356717100,0.72,186.01,186.0,0.28432314]
[1753356717101,5.37612962,186.01,186.0,0.28432314]
[1753356717300,10.0599743,186.01,186.0,0.28432314]
[1753356718724,10.0599743,186.01,186.0,38.66432314]
[1753356719320,0.03,186.05,186.02,0.28432314]
[1753356719520,0.03,186.05,186.04,21.75285179]